bitfinex/quotes_SOLUSD_20250811
["timestamp","ask_amount","ask_price","bid_price","bid_amount"]
[1754908582136,0.68,182.4,182.39,4.92856095]
[1754908582313,6.16245614,182.4,182.39,4.92856095]
[1754908582639,0.68,182.4,182.39,4.92856095]
[1754908582836,6.16250302,182.4,182.37,0.06]
[1754908583040,0.68,182.39,182.37,0.06]
[1754908583619,5.60856095,182.39,182.37,0.06]
[1754908584221,0.68,182.38,182.37,0.06]
[1754908584424,6.16305735,182.38,182.37,0.06]
[1754908584726,5.48277091,182.39,182.37,0.06]
[1754908585232,15.78621557,182.38,182.37,0.06]
[1754908586141,5.48248825,182.4,182.37,4.98856095]
[1754908586356,5.48248825,182.4,182.39,4.92856095]
[1754908586655,45.18187539,182.42,182.39,4.92856095]
[1754908586822,46.06477657,182.43,182.41,4.92856095]
[1754908587019,4.958561,182.43,182.42,4.92856095]
[1754908587226,0.03,182.43,182.42,4.92856095]
[1754908587428,0.03,182.43,182.42,5.60856095]
[1754908588544,0.03,182.43,182.42,11.090416]
[1754908588745,0.03,182.43,182.42,4.92856095]
[1754908590254,0.03,182.43,182.42,5.60856095]
[1754908590831,0.03,182.43,182.42,4.92856095]
[1754908591147,0.03,182.43,182.42,5.60856095]
[1754908592756,0.03,182.43,182.42,4.92856095]
[1754908592931,0.71,182.43,182.4,4.92856095]
[1754908593136,0.68,182.42,182.4,4.92856095]
[1754908593845,0.68,182.41,182.4,4.92856095]
[1754908594764,6.16215558,182.41,182.37,4.98856095]
[1754908594941,4.92856095,182.39,182.37,0.06]
[1754908595560,0.68,182.39,182.37,0.06]
[1754908595742,6.16215558,182.41,182.37,4.98856095]
[1754908595942,26.0,182.42,182.39,4.92856095]
[1754908596156,26.68,182.42,182.39,4.92856095]
[1754908596458,26.68,182.42,182.4,4.92856095]
[1754908597365,0.68,182.41,182.39,4.92856095]
[1754908598260,5.51162942,182.43,182.4,4.92856095]
[1754908598560,0.03,182.43,182.42,4.92856095]
[1754908599741,0.03,182.43,182.42,5.60856095]
[1754908600968,0.03,182.43,182.42,11.090416]
[1754908602362,0.03,182.43,182.42,4.92856095]
[1754908604045,0.03,182.43,182.42,5.60856095]
[1754908605044,0.03,182.43,182.42,11.090416]
[1754908610853,0.03,182.46,182.42,25.34323914]
[1754908611162,0.03,182.46,182.45,4.92856095]
[1754908614077,0.03,182.46,182.45,10.40951463]
[1754908614853,0.69,182.46,182.45,4.92856095]
[1754908615191,0.69,182.46,182.4,0.06]
[1754908615392,5.61856095,182.46,182.41,39.0]
[1754908615569,6.14095368,182.45,182.41,43.92856095]
[1754908615765,0.66,182.44,182.41,39.0]
[1754908616072,0.66,182.44,182.42,4.92856095]
[1754908616276,0.66,182.45,182.43,4.92856095]
[1754908616568,5.51071341,182.46,182.44,4.92856095]
[1754908617389,0.66,182.45,182.42,4.92856095]
[1754908617689,6.14107735,182.45,182.41,39.0]
[1754908617904,0.66,182.44,182.42,4.92856095]
[1754908618386,0.66,182.44,182.41,43.92856095]
[1754908618590,0.66,182.44,182.41,39.0]
[1754908619612,0.66,182.43,182.41,39.0]
[1754908619790,0.66,182.42,182.4,4.98856095]
[1754908620094,0.66,182.42,182.41,4.92856095]
[1754908620476,0.66,182.44,182.41,4.92856095]
[1754908620675,0.66,182.44,182.42,4.92856095]
[1754908620881,20.58723367,182.45,182.41,4.92856095]
[1754908621175,0.66,182.43,182.41,4.92856095]
[1754908621908,0.66,182.43,182.4,0.06]
[1754908622093,0.66,182.42,182.4,0.06]
[1754908622396,0.66,182.42,182.4,4.98856095]
[1754908622588,0.66,182.41,182.4,4.98856095]
[1754908623497,0.66,182.41,182.4,0.06]
[1754908623793,0.66,182.41,182.4,4.98856095]
[1754908624181,6.14163042,182.43,182.4,4.98856095]
[1754908624391,0.66,182.43,182.41,4.92856095]
[1754908624595,0.03,182.44,182.42,4.92856095]
[1754908624897,5.51126523,182.44,182.42,4.92856095]
[1754908625078,0.66,182.43,182.42,4.92856095]
[1754908625704,6.14156815,182.43,182.4,0.06]
[1754908625906,0.66,182.42,182.4,0.06]
[1754908626443,0.66,182.41,182.4,0.06]
[1754908627294,10.96320545,182.43,182.4,4.98856095]
[1754908627487,6.14163745,182.43,182.41,4.92856095]
[1754908628604,5.51133021,182.44,182.42,4.92856095]
[1754908628780,6.17133021,182.44,182.42,4.92856095]
[1754908628985,0.66,182.43,182.42,4.92856095]
[1754908629186,0.66,182.43,182.41,4.92856095]
[1754908629592,5.51133021,182.44,182.41,4.92856095]
[1754908629804,0.66,182.42,182.41,4.92856095]
[1754908630911,6.14185505,182.42,182.4,4.98856095]
[1754908631107,0.66,182.41,182.4,0.06]
[1754908632215,10.96351705,182.43,182.4,4.98856095]
[1754908632520,0.69,182.44,182.42,4.92856095]
[1754908633021,6.17129702,182.44,182.42,4.92856095]
[1754908634097,0.69,182.44,182.42,4.92856095]
[1754908634297,0.03,182.44,182.43,44.60856095]
[1754908635228,0.03,182.44,182.43,50.09011551]
[1754908636810,0.03,182.46,182.43,50.09011551]
[1754908637014,0.03,182.46,182.45,4.92856095]
[1754908637435,0.03,182.46,182.45,11.10951463]
[1754908637601,0.03,182.47,182.45,11.65760999]
[1754908637802,0.03,182.47,182.46,44.60856095]
[1754908639005,0.03,182.48,182.46,44.60856095]
[1754908639213,0.03,182.48,182.47,5.62856095]
[1754908639418,0.03,182.48,182.47,11.10891388]
[1754908639928,0.03,182.49,182.47,16.58551012]
[1754908640133,0.03,182.49,182.47,6.02838822]
[1754908640433,0.7,182.48,182.46,38.98]
[1754908640604,0.03,182.49,182.46,43.90856095]
[1754908640799,0.7,182.47,182.46,38.98]
[1754908641104,0.03,182.49,182.46,43.90856095]
[1754908641418,0.03,182.49,182.48,4.92856095]
[1754908642543,0.03,182.49,182.48,5.58856095]
[1754908642902,0.03,182.49,182.48,10.5171219]
[1754908643544,0.03,182.49,182.48,11.06861355]
[1754908644203,0.03,182.49,182.48,14.00115617]
[1754908644829,0.03,182.49,182.48,5.4800526]
[1754908645025,0.03,182.49,182.48,13.34115617]
[1754908645203,0.03,182.49,182.48,7.86110357]
[1754908647811,0.03,182.49,182.48,13.34115617]
[1754908648440,0.03,182.49,182.48,7.86110357]
[1754908648730,0.03,182.49,182.48,46.82110357]
[1754908650030,0.73,182.49,182.48,7.86110357]
[1754908650240,14.07086131,182.49,182.46,0.06]
[1754908650435,48.96731914,182.47,182.46,0.06]
[1754908650831,49.66731914,182.47,182.46,0.06]
[1754908651034,51.86204614,182.47,182.46,0.06]
[1754908651913,57.34239907,182.47,182.46,0.06]
[1754908652729,2.894727,182.47,182.46,0.06]
[1754908652932,0.7,182.47,182.46,0.06]
[1754908653217,6.18035293,182.47,182.46,0.06]
[1754908653461,0.7,182.47,182.46,0.06]
[1754908653818,6.18035293,182.47,182.46,0.06]
[1754908654017,29.14767207,182.47,182.46,0.06]
[1754908654245,21.2865685,182.47,182.46,0.06]
[1754908654543,29.14767207,182.47,182.46,0.06]
[1754908657330,21.2865685,182.47,182.46,0.06]
[1754908657523,29.14767207,182.47,182.46,0.06]
[1754908658841,21.2865685,182.47,182.46,0.06]
[1754908659145,29.14767207,182.47,182.46,0.06]
[1754908659941,21.2865685,182.47,182.46,0.06]
[1754908660547,29.14767207,182.47,182.46,0.06]
[1754908660936,21.2865685,182.47,182.46,0.06]
[1754908661248,29.2076715,182.47,182.46,0.06]
[1754908662838,37.06877507,182.47,182.46,0.06]
[1754908664247,29.2076715,182.47,182.46,0.06]
[1754908664452,21.2865685,182.47,182.46,0.06]
[1754908665151,0.7,182.47,182.46,4.97944951]
[1754908665950,4.919449,182.48,182.46,4.97944951]
[1754908666153,5.50992538,182.49,182.47,7.86674715]
[1754908666343,5.50992538,182.49,182.46,0.06]
[1754908666344,23.00296272,182.48,182.46,0.06]
[1754908666834,15.13621557,182.48,182.46,0.06]
[1754908667036,5.48035293,182.47,182.46,0.06]
[1754908667559,28.45331565,182.47,182.46,0.06]
[1754908667866,29.15331565,182.47,182.46,0.06]
[1754908668055,94.17331565,182.47,182.46,0.06]
[1754908670237,94.17331565,182.47,182.44,0.06]
[1754908670238,26.0,182.45,182.44,0.06]
[1754908670659,41.79621557,182.45,182.44,0.06]
[1754908670956,41.10621557,182.45,182.44,0.06]
[1754908671485,49.66296272,182.45,182.44,0.06]
[1754908671840,88.80296272,182.45,182.44,0.06]
[1754908672349,94.2839164,182.45,182.44,0.06]
[1754908674737,85.72716925,182.45,182.44,0.06]
[1754908675138,94.2839164,182.45,182.44,0.06]
[1754908680049,86.41716925,182.45,182.44,0.06]
[1754908680460,94.2839164,182.45,182.44,0.06]
[1754908684553,94.2839164,182.45,182.42,0.06]
[1754908684761,22.97296272,182.43,182.42,0.06]
[1754908685068,62.05296272,182.43,182.42,0.06]
[1754908685452,62.74296272,182.43,182.42,0.06]
[1754908685873,60.35777013,182.43,182.42,0.06]
[1754908686173,68.22451728,182.43,182.42,0.06]
[1754908686486,70.42008728,182.43,182.42,0.06]
[1754908688167,67.47635386,182.43,182.42,0.06]
[1754908688558,62.55334013,182.43,182.42,0.06]
[1754908688763,67.47635386,182.43,182.42,0.06]
[1754908688969,62.55334013,182.43,182.42,0.06]
[1754908689157,67.47635386,182.43,182.42,0.06]
[1754908691261,67.47635386,182.43,182.4,0.06]
[1754908691262,26.0,182.41,182.4,0.06]
[1754908691468,64.85224303,182.41,182.4,1e-08]
[1754908691660,60.6192293,182.41,182.4,1e-08]
[1754908691885,55.69621557,182.41,182.4,1e-08]
[1754908692185,61.17837115,182.41,182.4,1e-08]
[1754908692959,60.48837115,182.41,182.4,1e-08]
[1754908693160,65.41138488,182.41,182.4,1e-08]
[1754908693355,15.10621557,182.4,182.39,1e-08]
[1754908693555,15.10621557,182.4,182.36,0.06]
[1754908693556,41.10621557,182.38,182.36,1e-08]
[1754908693759,30.21471642,182.4,182.25,0.69]
[1754908693760,26.0,182.29,182.25,0.69]
[1754908694014,26.0,182.27,182.25,0.69]
[1754908694281,26.0,182.27,182.26,0.69]
[1754908694474,26.0,182.3,182.26,5.61301373]
[1754908694664,5.48395941,182.35,182.27,0.69]
[1754908694866,26.0,182.31,182.3,4.92301373]
[1754908695064,15.10621557,182.3,182.28,0.69]
[1754908695259,20.0292293,182.3,182.26,0.69]
[1754908695484,20.0292293,182.3,182.25,4.92301373]
[1754908695665,15.10621557,182.3,182.27,0.69]
[1754908695982,20.0292293,182.3,182.27,0.69]
[1754908696180,5.48576444,182.29,182.27,0.69]
[1754908696667,13.37186374,182.29,182.25,0.69]
[1754908696865,5.48576444,182.29,182.26,0.69]
[1754908697174,22.99231487,182.3,182.23,0.2]
[1754908697175,20.59169276,182.3,182.27,0.69]
[1754908697379,20.59169276,182.3,182.26,7.8860993]
[1754908697580,20.59169276,182.3,182.27,0.69]
[1754908697987,20.59169276,182.3,182.28,0.69]
[1754908698574,15.10621557,182.3,182.28,0.69]
[1754908699480,20.59178531,182.3,182.26,0.69]
[1754908699676,28.47788461,182.3,182.26,0.69]
[1754908701001,29.19788461,182.3,182.26,0.69]
[1754908701392,21.31178531,182.3,182.26,0.69]
[1754908701588,20.59178531,182.3,182.27,7.8860993]
[1754908701892,26.0,182.31,182.28,0.7]
[1754908702076,26.0,182.31,182.27,7.8860993]
[1754908702272,26.0,182.31,182.28,7.8860993]
[1754908702470,26.0,182.31,182.29,7.8860993]
[1754908702678,31.48518249,182.31,182.28,8.5860993]
[1754908702977,0.72,182.3,182.28,7.8860993]
[1754908703301,31.48518249,182.31,182.27,7.8860993]
[1754908703485,31.48518249,182.31,182.27,8.5860993]
[1754908703674,32.20518249,182.31,182.27,7.8860993]
[1754908703877,23.71231487,182.3,182.25,0.7]
[1754908704077,23.71231487,182.3,182.26,7.8860993]
[1754908704405,15.10621557,182.3,182.27,7.8860993]
[1754908704581,15.10621557,182.3,182.27,8.5860993]
[1754908704787,66.16,182.31,182.28,8.5860993]
[1754908705381,26.0,182.31,182.3,7.8860993]
[1754908705601,26.0,182.31,182.3,8.5860993]
[1754908705900,26.0,182.31,182.3,0.7]
[1754908706079,26.0,182.31,182.3,8.5860993]
[1754908706715,15.10621557,182.33,182.3,8.5860993]
[1754908706913,0.72,182.32,182.27,0.7]
[1754908707207,20.59086334,182.33,182.29,7.8860993]
[1754908707503,21.31086334,182.33,182.28,0.7]
[1754908707678,20.59086334,182.33,182.3,7.8860993]
[1754908707878,21.31086334,182.33,182.3,7.8860993]
[1754908708295,20.59086334,182.33,182.3,7.8860993]
[1754908708514,15.10621557,182.33,182.3,8.5860993]
[1754908708681,15.10621557,182.33,182.31,7.8860993]
[1754908709300,26.0,182.34,182.32,7.8860993]
[1754908709700,31.48434686,182.34,182.32,7.8860993]
[1754908709984,26.0,182.34,182.32,7.8860993]
[1754908710482,61.52017399,182.36,182.32,7.8860993]
[1754908710706,15.10621557,182.35,182.33,7.8860993]
[1754908710906,31.51395842,182.36,182.32,0.7]
[1754908711907,0.03,182.36,182.33,0.7]
[1754908712084,15.13621557,182.36,182.28,7.8860993]
[1754908712284,0.03,182.36,182.35,7.8860993]
[1754908712485,0.03,182.36,182.35,14.07005871]
[1754908712784,0.03,182.36,182.35,8.5860993]
[1754908712984,0.03,182.36,182.35,7.8860993]
[1754908713682,0.03,182.36,182.29,26.0]
[1754908713896,0.03,182.36,182.35,7.8860993]
[1754908714693,0.03,182.36,182.35,8.5860993]
[1754908714904,0.03,182.36,182.35,14.07005871]
[1754908716009,0.03,182.36,182.35,6.18395941]
[1754908716209,0.03,182.36,182.35,11.10593254]
[1754908717511,0.03,182.38,182.35,11.10593254]
[1754908717712,0.03,182.38,182.36,0.7]
[1754908718008,0.03,182.38,182.37,4.92197313]
[1754908718419,0.03,182.38,182.37,5.62197313]
[1754908718715,0.03,182.38,182.37,11.10533113]
[1754908720517,0.03,182.38,182.37,10.40533113]
[1754908720997,0.03,182.38,182.37,4.92197313]
[1754908721203,0.75,182.38,182.36,4.92197313]
[1754908721399,0.72,182.37,182.34,5.48403867]
[1754908721602,0.72,182.37,182.36,4.92197313]
[1754908722096,0.72,182.37,182.35,4.92197313]
[1754908722692,0.03,182.38,182.35,4.92197313]
[1754908723025,0.03,182.38,182.37,4.92197313]
[1754908725111,0.03,182.38,182.33,0.7]
[1754908725325,0.72,182.37,182.35,4.92197313]
[1754908725522,0.03,182.38,182.36,4.92197313]
[1754908725686,0.03,182.38,182.37,4.92197313]
[1754908727925,0.03,182.38,182.37,11.10533113]
[1754908728435,0.03,182.38,182.37,16.02730426]
[1754908728813,0.03,182.4,182.39,9.84394626]
[1754908729322,0.03,182.4,182.39,10.54394626]
[1754908729701,0.03,182.4,182.39,16.02670299]
[1754908730331,0.03,182.4,182.39,14.05230075]
[1754908731323,0.03,182.4,182.39,54.21230075]
[1754908732708,0.03,182.4,182.39,62.08184477]
[1754908733104,0.03,182.42,182.39,62.08184477]
[1754908733340,0.03,182.42,182.41,13.3516996]
[1754908733708,0.03,182.42,182.41,14.0216996]
[1754908734520,0.03,182.42,182.41,13.3516996]
[1754908734814,0.03,182.42,182.41,5.48215558]
[1754908735021,0.03,182.42,182.41,53.4516996]
[1754908736025,0.03,182.42,182.41,47.96954402]
[1754908736231,0.71,182.42,182.41,47.96954402]
[1754908736542,0.03,182.42,182.41,47.96954402]
[1754908736937,0.03,182.42,182.41,53.4516996]
[1754908737616,0.03,182.42,182.41,47.96954402]
[1754908738035,0.03,182.42,182.41,40.1]
[1754908738258,0.03,182.42,182.41,47.96954402]
[1754908738622,0.03,182.42,182.41,53.4516996]
[1754908739030,0.71,182.42,182.41,7.86954402]
[1754908741825,0.03,182.42,182.41,7.86954402]
[1754908742540,0.03,182.42,182.41,13.3516996]
[1754908742724,0.03,182.42,182.41,14.0216996]
[1754908742925,0.03,182.42,182.41,7.86954402]
[1754908744346,0.03,182.42,182.41,13.3516996]
[1754908744650,0.03,182.42,182.41,14.0216996]
[1754908748362,0.03,182.42,182.41,13.3516996]
[1754908748942,0.03,182.42,182.41,7.86954402]
[1754908749262,0.71,182.42,182.41,7.86954402]
[1754908751660,6.19187002,182.42,182.4,47.90954402]
[1754908751856,5.51187002,182.42,182.4,47.90954402]
[1754908752170,0.68,182.41,182.4,47.90954402]
[1754908752464,0.68,182.41,182.4,44.96100986]
[1754908754231,0.03,182.42,182.4,44.96100986]
[1754908754432,0.68,182.41,182.4,44.96100986]
[1754908754653,0.68,182.41,182.4,40.04]
[1754908754847,0.68,182.41,182.38,39.9]
[1754908755247,0.68,182.41,182.39,4.92100986]
[1754908755653,5.51193929,182.42,182.39,4.92100986]
[1754908755837,6.19193929,182.42,182.39,4.92100986]
[1754908756151,0.68,182.41,182.39,4.92100986]
[1754908756351,0.68,182.4,182.39,4.92100986]
[1754908756657,0.68,182.4,182.38,44.82100986]
[1754908756861,0.68,182.39,182.38,44.82100986]
[1754908757155,0.68,182.39,182.38,0.06]
[1754908758462,5.51194,182.41,182.38,4.98100986]
[1754908758763,0.71,182.42,182.4,4.92100986]
[1754908759179,0.03,182.42,182.41,4.92100986]
[1754908759475,0.71,182.42,182.41,4.92100986]
[1754908759673,0.71,182.42,182.4,4.92100986]
[1754908759975,0.68,182.41,182.38,39.86]
[1754908760169,5.60100986,182.41,182.38,0.06]
[1754908760363,5.60100986,182.4,182.38,0.06]
[1754908760663,0.68,182.39,182.38,0.06]
[1754908761245,26.18998216,182.39,182.38,0.06]
[1754908763566,21.2689723,182.39,182.38,0.06]
[1754908763753,26.18998216,182.39,182.38,0.06]
[1754908764857,21.2689723,182.39,182.38,0.06]
[1754908765165,26.18998216,182.39,182.38,0.06]
[1754908768072,21.2689723,182.39,182.38,0.06]
[1754908768373,26.18998216,182.39,182.38,0.06]
[1754908770173,31.11099216,182.39,182.38,0.06]
[1754908771371,70.81099216,182.39,182.38,0.06]
[1754908774058,70.13099216,182.39,182.38,0.06]
[1754908774460,5.48275673,182.39,182.38,0.06]
[1754908775468,6.16275673,182.39,182.38,0.06]
[1754908775662,11.08376659,182.39,182.38,0.06]
[1754908776472,6.16275673,182.39,182.38,0.06]
[1754908776678,26.18998216,182.39,182.38,0.06]
[1754908779182,65.78998216,182.39,182.38,0.06]
[1754908779494,67.98591416,182.39,182.38,0.06]
[1754908780069,15.10621557,182.38,182.36,0.06]
[1754908780276,59.60722543,182.37,182.36,0.06]
[1754908780499,60.28722543,182.37,182.36,0.06]
[1754908780988,62.48351943,182.37,182.36,0.06]
[1754908782070,62.48351943,182.37,182.34,0.06]
[1754908782071,26.0,182.35,182.34,0.06]
[1754908782270,70.48100986,182.35,182.34,0.06]
[1754908782470,71.16100986,182.35,182.34,0.06]
[1754908782976,73.35742486,182.35,182.34,0.06]
[1754908783694,78.84138427,182.35,182.34,0.06]
[1754908785386,78.16138427,182.35,182.34,0.06]
[1754908786282,73.24037441,182.35,182.34,0.06]
[1754908786483,88.34658998,182.35,182.34,0.06]
[1754908786784,88.28658998,182.35,182.34,0.06]
[1754908787100,86.09017498,182.35,182.34,0.06]
[1754908787480,80.60621557,182.35,182.34,0.06]
[1754908787796,86.09017498,182.35,182.34,0.06]
[1754908788593,91.69118484,182.35,182.34,0.06]
[1754908792390,91.01118484,182.35,182.34,0.06]
[1754908792587,86.09017498,182.35,182.34,0.06]
[1754908792906,91.01118484,182.35,182.34,0.06]
[1754908793281,91.72118484,182.35,182.34,0.06]
[1754908794579,91.01118484,182.35,182.34,0.06]
[1754908794902,80.60621557,182.35,182.34,0.74]
[1754908795203,80.60621557,182.35,182.34,0.06]
[1754908795886,86.09017498,182.35,182.34,0.06]
[1754908796686,39.5,182.35,182.34,0.06]
[1754908796886,0.03,182.36,182.34,5.66100986]
[1754908797076,0.03,182.36,182.35,5.60100986]
[1754908800004,0.03,182.36,182.35,0.68]
[1754908800203,0.03,182.36,182.35,5.60100986]
[1754908800399,0.03,182.36,182.35,0.68]
[1754908800588,0.03,182.36,182.35,11.08496927]
[1754908802185,0.03,182.38,182.35,11.08496927]
[1754908802487,0.03,182.38,182.37,4.92100986]
[1754908803007,0.03,182.38,182.37,5.60100986]
[1754908803221,0.03,182.38,182.37,11.08436786]
[1754908803392,0.03,182.38,182.37,6.163358]
[1754908803591,0.03,182.38,182.37,11.08436786]
[1754908808627,0.03,182.42,182.37,29.71377274]
[1754908808788,0.03,182.42,182.41,4.92100986]
[1754908809911,0.74,182.42,182.41,4.92100986]
[1754908810290,0.74,182.42,182.39,4.92100986]
[1754908810793,0.74,182.42,182.38,4.92100986]
[1754908811126,0.74,182.42,182.36,4.92100986]
[1754908811127,6.22191092,182.42,182.36,4.92100986]
[1754908811301,4.92100986,182.41,182.36,4.92100986]
[1754908811495,5.63100986,182.41,182.37,4.92100986]
[1754908811694,4.92100986,182.41,182.37,4.92100986]
[1754908812007,0.71,182.4,182.37,4.92100986]
[1754908812201,10.40327944,182.41,182.37,4.92100986]
[1754908812400,0.71,182.39,182.37,4.92100986]
[1754908813092,6.22194546,182.42,182.38,4.92100986]
[1754908813297,6.22194546,182.42,182.37,0.68]
[1754908813298,5.51194546,182.42,182.39,4.92100986]
[1754908813497,0.71,182.41,182.39,4.92100986]
[1754908814012,0.71,182.4,182.38,4.92100986]
[1754908814612,0.71,182.4,182.36,5.48365374]
[1754908815001,0.71,182.4,182.38,4.92100986]
[1754908815214,15.13621557,182.42,182.39,4.92100986]
[1754908815403,21.32815358,182.42,182.39,4.92100986]
[1754908815602,0.71,182.41,182.39,4.92100986]
[1754908817097,15.13621557,182.42,182.39,4.92100986]
[1754908817320,15.84621557,182.42,182.39,4.92100986]
[1754908817525,0.03,182.4,182.38,4.92100986]
[1754908817722,0.03,182.4,182.39,4.92100986]
[1754908819313,0.03,182.4,182.39,10.52201972]
[1754908819517,0.03,182.4,182.39,5.60100986]
[1754908819715,0.03,182.4,182.39,44.18100986]
[1754908819905,0.03,182.4,182.38,5.4830286]
[1754908820106,0.03,182.4,182.38,10.40403846]
[1754908820616,0.03,182.4,182.39,4.92100986]
[1754908821617,0.03,182.4,182.39,11.05376659]
[1754908821825,0.03,182.4,182.38,5.48301089]
[1754908822021,0.69,182.4,182.37,39.26]
[1754908822224,0.69,182.4,182.37,4.92100986]
[1754908822407,0.03,182.4,182.37,4.92100986]
[1754908822725,0.66,182.39,182.36,4.98100986]
[1754908822926,0.66,182.39,182.36,10.46459298]
[1754908824330,0.03,182.4,182.38,4.92100986]
[1754908825728,0.69,182.4,182.38,4.92100986]
[1754908827223,0.66,182.39,182.36,4.98100986]
[1754908827722,0.66,182.39,182.36,0.06]
[1754908827921,0.03,182.4,182.36,0.06]
[1754908827922,0.66,182.38,182.36,0.06]
[1754908828132,4.92100986,182.39,182.36,0.06]
[1754908828427,0.66,182.37,182.36,0.06]
[1754908829033,5.58100986,182.37,182.36,0.06]
[1754908829831,0.66,182.37,182.36,0.06]
[1754908830811,10.40386808,182.39,182.36,0.06]
[1754908831016,11.06386808,182.39,182.36,0.06]
[1754908831334,11.06386808,182.39,182.37,4.92100986]
[1754908831335,0.66,182.39,182.37,4.92100986]
[1754908831521,0.66,182.39,182.36,4.98100986]
[1754908832233,5.48276176,182.39,182.36,0.06]
[1754908832409,6.14276176,182.39,182.36,4.98100986]
[1754908832733,0.66,182.39,182.36,4.98100986]
[1754908833029,0.03,182.4,182.37,4.92100986]
[1754908833217,0.66,182.39,182.36,4.98100986]
[1754908833613,5.51249512,182.4,182.36,4.98100986]
[1754908833928,6.17249512,182.4,182.36,4.98100986]
[1754908834629,0.66,182.39,182.36,4.98100986]
[1754908835635,0.03,182.4,182.36,10.46463548]
[1754908835934,6.17247884,182.4,182.36,4.98100986]
[1754908836130,5.51247884,182.4,182.36,4.98100986]
[1754908836329,0.66,182.39,182.36,4.98100986]
[1754908836733,0.03,182.4,182.38,4.92100986]
[1754908836916,0.03,182.4,182.39,4.92100986]
[1754908837241,0.03,182.4,182.38,4.92100986]
[1754908837419,0.69,182.4,182.38,4.92100986]
[1754908837835,0.69,182.4,182.37,4.92100986]
[1754908838032,0.66,182.39,182.37,4.92100986]
[1754908838936,0.66,182.39,182.36,4.98100986]
[1754908839318,0.66,182.38,182.36,0.06]
[1754908839517,5.58100986,182.38,182.36,0.06]
[1754908839737,0.66,182.37,182.36,0.06]
[1754908839925,5.58100986,182.37,182.36,0.06]
[1754908841436,20.68722543,182.37,182.36,0.06]
[1754908841613,26.17058343,182.37,182.36,0.06]
[1754908841818,52.17058343,182.37,182.36,0.06]
[1754908842016,54.36675643,182.37,182.36,0.06]
[1754908842218,34.339531,182.37,182.36,0.06]
[1754908842749,2.196173,182.37,182.36,4.98100986]
[1754908842938,15.76621557,182.39,182.36,4.98100986]
[1754908843238,0.03,182.4,182.38,4.92100986]
[1754908843439,0.03,182.4,182.39,4.92100986]
[1754908844716,0.69,182.4,182.38,4.92100986]
[1754908846049,0.66,182.39,182.36,4.98100986]
[1754908846343,5.58100986,182.38,182.36,0.06]
[1754908846547,5.58100986,182.37,182.36,0.06]
[1754908846749,11.12567686,182.37,182.36,0.06]
[1754908847245,6.204667,182.37,182.36,0.06]
[1754908847731,4.92100986,182.38,182.36,0.06]
[1754908847924,20.58924525,182.39,182.36,0.06]
[1754908848119,10.465832,182.38,182.36,0.06]
[1754908848334,16.04684186,182.38,182.36,0.06]
[1754908848531,0.66,182.37,182.36,0.06]
[1754908848746,20.68722543,182.37,182.36,0.06]
[1754908849129,59.92722543,182.37,182.36,0.06]
[1754908849838,65.41058343,182.37,182.36,0.06]
[1754908853528,67.60675643,182.37,182.36,0.06]
[1754908856246,67.60675643,182.37,182.36,1e-08]
[1754908856431,26.0,182.35,182.34,0.06]
[1754908856633,85.26722543,182.35,182.34,0.06]
[1754908857050,85.97722543,182.35,182.34,0.06]
[1754908857343,88.17363943,182.35,182.34,0.06]
[1754908857753,93.65759884,182.35,182.34,0.06]
[1754908858329,88.73658898,182.35,182.34,0.06]
[1754908858533,93.65759884,182.35,182.34,0.06]
[1754908858928,88.73658898,182.35,182.34,0.06]